bitfinex-derivatives/quotes_ETHF0:USTF0_20240923
["timestamp","ask_amount","ask_price","bid_price","bid_amount"]
[1727105048166,1.80538,2666.7,2666.5,0.37499]
[1727105048364,0.4858,2666.7,2666.6,0.37499]
[1727105048873,0.4858,2666.7,2666.5,2.05]
[1727105048874,0.86077,2666.7,2666.5,2.05]
[1727105049176,0.86077,2666.7,2666.5,2.42499]
[1727105049579,0.86078,2666.7,2666.5,2.42499]
[1727105049872,0.86078,2666.7,2666.6,0.37499]
[1727105051383,0.4858,2666.7,2666.6,0.37499]
[1727105051771,0.86078,2666.7,2666.5,2.42499]
[1727105051967,3.7504,2666.6,2666.5,2.05]
[1727105052380,4.12539,2666.6,2666.5,2.425]
[1727105052576,3.7504,2666.6,2666.5,2.425]
[1727105053168,0.86077,2666.7,2666.6,0.37499]
[1727105053370,4.2362,2666.7,2666.5,2.425]
[1727105053572,4.61118,2666.7,2666.6,0.37499]
[1727105054967,0.86078,2666.7,2666.6,0.37499]
[1727105055176,0.37499,2666.6,2666.5,2.05]
[1727105055374,0.85799,2666.6,2666.5,2.05]
[1727105055571,0.37501,2666.4,2666.3,2.89362]
[1727105055879,0.37501,2666.4,2666.3,2.42502]
[1727105056473,0.37507,2666.1,2666.0,0.37506]
[1727105056877,3.2078,2666.4,2665.9,2.05]
[1727105057178,0.37506,2666.2,2666.1,0.37505]
[1727105057574,4.12546,2666.2,2666.1,0.37505]
[1727105058077,3.7504,2666.2,2666.1,2.42505]
[1727105058273,4.12544,2666.2,2666.1,2.42505]
[1727105058471,4.12544,2666.2,2666.0,0.37506]
[1727105058472,0.37506,2666.1,2666.0,0.37506]
[1727105058678,1.30036,2666.1,2666.0,0.37506]
[1727105059181,0.37507,2666.0,2665.9,2.42508]
[1727105059484,0.37507,2666.0,2665.9,2.05]
[1727105059685,0.37507,2666.0,2665.9,2.42508]
[1727105060579,1.30037,2666.1,2666.0,0.37507]
[1727105060781,0.93756,2666.4,2666.2,0.37504]
[1727105060989,1.41716,2666.4,2666.2,2.05]
[1727105061178,4.12543,2666.3,2666.2,2.05]
[1727105061880,0.37503,2666.3,2666.2,2.42504]
[1727105062177,0.375,2666.6,2666.5,0.375]
[1727105062383,0.375,2666.6,2666.5,2.425]
[1727105062580,0.4796,2666.7,2666.6,0.37499]
[1727105063081,0.37497,2666.7,2666.6,0.37499]
[1727105063883,0.37499,2666.6,2666.5,2.05]
[1727105064379,0.37499,2666.6,2666.5,2.425]
[1727105064982,1.31246,2666.6,2666.5,2.05]
[1727105065180,0.37501,2666.4,2666.3,2.05]
[1727105065480,0.37501,2666.4,2666.3,2.42503]
[1727105065683,0.86461,2666.4,2666.3,2.42503]
[1727105067571,0.4896,2666.4,2666.3,2.42503]
[1727105068384,1.40823,2666.8,2666.6,0.37498]
[1727105068385,0.4708,2666.8,2666.6,0.37498]
[1727105068573,0.37498,2666.7,2666.6,2.42498]
[1727105069272,0.9325,2666.8,2666.6,2.42498]
[1727105069482,0.9325,2666.8,2666.7,0.37497]
[1727105069683,3.2078,2666.9,2666.8,0.37496]
[1727105070278,3.2078,2666.9,2666.6,2.05]
[1727105070477,3.2078,2666.9,2666.8,2.42496]
[1727105072081,0.9296,2667.4,2667.2,0.3749]
[1727105072283,1.30448,2667.4,2667.1,2.05]
[1727105072586,0.9296,2667.4,2667.1,2.05]
[1727105072887,3.2078,2667.5,2667.3,0.37489]
[1727105073079,3.58267,2667.5,2667.4,2.05]
[1727105073280,3.6773,2667.8,2667.4,2.05]
[1727105073583,3.6773,2667.8,2667.7,2.42483]
[1727105073777,4.18879719,2668.1,2667.7,2.05]
[1727105073980,3.2078,2668.1,2668.0,2.42479]
[1727105074381,3.748,2668.1,2668.0,2.42479]
[1727105074581,6.16390979,2668.7,2668.0,11.798]
[1727105074582,0.98099719,2668.7,2668.0,11.798]
[1727105074779,3.58248,2668.8,2668.7,0.37469]
[1727105074984,3.2078,2668.8,2668.7,0.37469]
[1727105075375,1.47148145,2669.4,2668.7,0.37469]
[1727105075376,0.98099719,2669.4,2668.7,9.7472]
[1727105075582,0.37457,2669.6,2669.3,2.05]
[1727105075778,0.37455,2669.7,2669.3,2.4246]
[1727105075984,0.37457,2669.6,2669.3,2.4246]
[1727105076179,0.37456,2669.7,2669.4,0.37458]
[1727105076382,3.6949,2669.8,2669.5,2.05]
[1727105076383,0.37456,2669.6,2669.5,2.05]
[1727105076583,3.6949,2669.8,2669.5,2.05]
[1727105076788,0.93642,2669.6,2668.8,0.087]
[1727105076981,0.93642,2669.6,2668.8,2.05]
[1727105076982,3.2078,2668.9,2668.8,2.05]
[1727105077176,3.2078,2668.9,2668.5,2.05]
[1727105077177,6.955,2668.9,2668.5,2.05]
[1727105077481,3.2078,2668.6,2668.5,2.05]
[1727105077681,3.2078,2668.6,2668.5,2.42472]
[1727105077890,3.5825,2668.6,2668.5,2.05]
[1727105078682,0.37475,2668.3,2668.2,0.4538]
[1727105078882,3.2078,2668.6,2668.2,2.42475]
[1727105079082,3.58251,2668.6,2668.5,2.05]
[1727105079689,0.37474,2668.4,2668.3,2.05]
[1727105079889,0.37472,2668.5,2668.3,2.05]
[1727105080081,0.37473,2668.4,2668.3,2.05]
[1727105080286,3.2078,2668.6,2668.1,3.2078]
[1727105080485,3.58251,2668.6,2668.2,0.37475]
[1727105080690,3.2078,2668.6,2668.0,8.09578]
[1727105080992,3.2078,2668.3,2668.0,7.721]
[1727105081184,3.2078,2668.3,2668.0,2.52]
[1727105081185,0.37477,2668.2,2668.0,2.52]
[1727105081590,0.37476,2668.2,2667.8,0.4538]
[1727105081787,0.4685,2668.1,2667.8,0.4538]
[1727105081990,0.84328,2668.1,2667.8,0.4538]
[1727105082293,0.37479,2668.0,2667.8,0.4538]
[1727105082492,0.37479,2668.0,2667.6,11.30264]
[1727105082692,0.84328,2668.1,2667.7,0.37483]
[1727105082907,0.84328,2668.1,2667.6,10.9278]
[1727105083188,0.4685,2668.1,2667.8,0.3748]
[1727105083393,3.2078,2668.2,2667.6,10.9278]
[1727105083592,3.2078,2668.5,2668.0,2.52]
[1727105083791,3.2078,2668.4,2667.8,3.2078]
[1727105083995,0.37476,2668.3,2667.9,0.3748]
[1727105084296,0.37476,2668.2,2667.9,0.3748]
[1727105084589,0.82995,2668.3,2668.0,0.37478]
[1727105084992,3.2078,2668.5,2668.0,0.37478]
[1727105085188,0.37473,2668.4,2667.8,3.6861]
[1727105085386,0.37473,2668.4,2668.0,0.37478]
[1727105085992,3.2078,2668.5,2668.0,2.52]
[1727105086191,0.4552,2668.6,2668.0,2.52]
[1727105086386,0.4552,2668.6,2668.3,0.37474]
[1727105086585,3.2078,2668.8,2668.4,0.4497]
[1727105086788,0.8453,2668.7,2668.4,0.82443]
[1727105087095,0.4706,2668.7,2668.4,0.82442]
[1727105087293,0.4706,2668.7,2668.3,2.52]
[1727105087294,0.37472,2668.5,2668.3,2.52]
[1727105087491,0.37471,2668.6,2668.3,0.37475]
[1727105087797,0.8453,2668.7,2668.1,0.4497]
[1727105088193,0.8453,2668.7,2668.4,0.37473]
[1727105088391,0.8453,2668.7,2668.6,0.3747]
[1727105088392,0.4706,2668.7,2668.6,0.3747]
[1727105088911,0.84529,2668.7,2668.5,0.37471]
[1727105089086,0.84529,2668.7,2668.4,0.37473]
[1727105089492,0.4706,2668.7,2668.1,0.4497]
[1727105089793,0.4706,2668.7,2668.0,6.1792]
[1727105089794,3.2078,2668.5,2668.0,0.37478]
[1727105089994,0.37477,2668.2,2668.0,5.175]
[1727105090298,0.37477,2668.2,2668.0,5.54979]
[1727105090509,0.37476,2668.3,2668.0,5.54979]
[1727105090801,0.37476,2668.2,2668.0,5.175]
[1727105091097,0.4552,2668.4,2668.0,5.175]
[1727105091498,0.37477,2668.2,2668.0,5.175]
[1727105091801,0.37475,2668.3,2668.0,5.54979]
[1727105093095,0.37475,2668.3,2668.1,0.37477]
[1727105094000,0.4552,2668.4,2668.0,5.175]
[1727105094001,0.37476,2668.2,2668.0,5.54978]
[1727105094203,0.85956,2668.2,2668.0,5.54978]
[1727105095092,0.4848,2668.2,2667.8,0.4772]
[1727105095296,0.37477,2668.1,2667.8,5.6522]
[1727105095501,0.85957,2668.2,2668.0,0.37478]
[1727105095895,0.37477,2668.1,2667.8,5.5498]
[1727105096090,0.37479,2668.0,2667.8,5.5498]
[1727105096306,0.37479,2668.0,2667.8,0.3748]
[1727105096604,0.37478,2668.1,2667.9,0.3748]
[1727105097895,0.37478,2668.1,2667.7,7.695]
[1727105097896,0.37478,2668.1,2668.0,0.37479]
[1727105098093,3.6926,2668.2,2667.9,0.37479]
[1727105098295,0.37482,2667.8,2667.6,5.175]
[1727105098495,0.37482,2667.8,2667.7,0.37482]
[1727105098708,0.37483,2667.7,2667.6,0.37484]
[1727105098902,3.6926,2668.2,2667.1,3.0022]
[1727105098903,3.2078,2667.9,2667.1,3.0022]
[1727105099092,0.37488,2667.4,2667.3,0.37489]
[1727105099297,3.6898,2667.6,2667.1,3.0022]
[1727105099298,3.6898,2667.6,2667.5,0.37486]
[1727105099502,3.2078,2667.6,2667.5,0.37486]
[1727105100403,3.2078,2667.6,2667.5,4.12366]
[1727105100604,0.85956,2668.2,2667.5,4.87772905]
[1727105100810,0.85956,2668.2,2668.0,0.37478]
[1727105100811,0.37477,2668.1,2668.0,0.37478]
[1727105101103,0.4848,2668.2,2668.1,0.37477]
[1727105101605,4.2328,2668.2,2668.1,0.37477]
[1727105101908,4.60756,2668.2,2668.1,0.37477]
[1727105102102,4.2328,2668.2,2668.1,0.37477]
[1727105102308,3.748,2668.2,2668.1,2.42477]
[1727105102903,3.748,2668.2,2668.1,2.05]
[1727105103101,3.748,2668.2,2668.1,2.42477]
[1727105104001,3.748,2668.2,2668.1,2.05]
[1727105104209,3.748,2668.2,2667.9,7.226]
[1727105104400,0.37476,2668.2,2668.0,0.37478]
[1727105104598,3.2078,2668.3,2667.9,2.4248]
[1727105104806,0.37477,2668.2,2667.9,2.4248]
[1727105105005,0.37478,2668.1,2667.9,2.4248]
[1727105105203,0.37479,2668.0,2667.9,2.05]
[1727105105404,0.37478,2668.1,2667.9,2.4248]
[1727105105605,0.37477,2668.2,2668.0,0.37479]
[1727105105796,3.2078,2668.3,2667.9,2.05]
[1727105106001,3.2078,2668.3,2668.2,0.37476]
[1727105106803,0.88313,2668.4,2668.2,0.37476]
[1727105107005,0.37475,2668.3,2668.2,0.37476]
[1727105107209,0.88314,2668.4,2668.2,0.37476]
[1727105107809,6.9558,2668.3,2667.7,0.5054]
[1727105107999,0.37484,2667.7,2667.5,2.19854357]
[1727105108213,3.2078,2668.1,2667.8,0.37481]
[1727105108407,3.2078,2668.1,2667.7,2.05]
[1727105108808,0.37477,2668.2,2668.1,0.37477]
[1727105109503,3.7162,2668.4,2668.3,0.37475]
[1727105109504,0.5084,2668.4,2668.3,0.37475]
[1727105109811,0.37475,2668.3,2668.2,0.37476]
[1727105110011,0.88314,2668.4,2668.2,0.37476]
[1727105110608,0.37475,2668.3,2668.2,0.37476]
[1727105110908,0.37476,2668.2,2668.1,2.42476]
[1727105111317,0.88314,2668.4,2668.3,0.37475]
[1727105112110,0.37473,2668.5,2668.4,0.37473]
[1727105112304,1.91308,2668.6,2668.1,2.5353]
[1727105112615,0.37474,2668.4,2668.3,0.37474]
[1727105112814,1.91308,2668.6,2668.1,2.5353]
[1727105113009,3.6683,2668.7,2668.5,0.37472]
[1727105113211,3.6683,2668.7,2668.6,2.4247]
[1727105113513,4.04299,2668.7,2668.6,2.4247]
[1727105113715,0.37469,2668.7,2668.6,2.05]
[1727105113905,0.37469,2668.8,2668.7,0.37469]
[1727105114101,0.507,2668.9,2668.6,2.4247]
[1727105114102,0.37469,2668.7,2668.6,2.4247]
[1727105114304,0.507,2668.9,2668.6,2.05]
[1727105114515,0.37469,2668.7,2668.6,2.4247]
[1727105114716,0.507,2668.9,2668.6,2.05]
[1727105114917,4.18879719,2669.0,2668.6,2.05]
[1727105115111,3.2078,2669.0,2668.9,2.42466]
[1727105115309,4.56344719,2669.0,2668.9,2.05]
[1727105115512,4.18879719,2669.0,2668.9,2.05]
[1727105115726,1.81443719,2669.1,2669.0,0.37465]
[1727105116009,5.18619719,2669.1,2668.9,2.42466]
[1727105116210,1.47148145,2669.1,2669.0,0.37465]
[1727105116415,0.97922986,2669.2,2669.1,0.37463]
[1727105116615,5.05390145,2669.3,2669.2,0.37462]
[1727105116616,1.35383986,2669.3,2669.2,0.37462]
[1727105116804,0.97922986,2669.3,2669.2,0.37462]
[1727105117006,1.84608145,2669.4,2669.3,0.37461]
[1727105117007,1.35382986,2669.4,2669.3,0.37461]
[1727105117212,1.35382986,2669.4,2669.2,0.37462]
[1727105117213,0.37461,2669.3,2669.2,0.37462]
[1727105117404,0.97944812,2669.3,2669.2,0.37462]
[1727105117609,0.97917943,2669.4,2669.3,0.37461]
[1727105117814,1.35376943,2669.4,2669.3,0.37461]
[1727105118015,0.37461,2669.3,2669.2,0.37461]
[1727105118216,1.35382021,2669.3,2669.2,0.37461]
[1727105118403,0.37461,2669.3,2669.2,0.37461]
[1727105118608,1.35400224,2669.3,2669.2,0.37461]
[1727105118810,0.97939224,2669.3,2669.2,0.37461]
[1727105119015,0.97939224,2669.4,2669.3,0.37461]
[1727105119217,0.97939224,2669.5,2669.4,0.37459]
[1727105119411,1.84606145,2669.5,2669.0,2.90714]
[1727105119615,1.84606145,2669.5,2668.6,0.5028]
[1727105119616,0.93663,2669.0,2668.6,0.5028]
[1727105119820,0.9651,2668.9,2668.5,2.05]
[1727105120116,1.35401553,2668.8,2668.7,2.05]
[1727105120315,0.37468,2668.8,2668.7,2.05]
[1727105120506,1.84616145,2668.8,2668.7,2.05]
[1727105120705,5.05396145,2668.8,2668.7,2.42469]
[1727105121019,0.97968051,2668.8,2668.7,2.42469]
[1727105121213,3.6843,2669.1,2668.9,0.93666]
[1727105121214,0.97968051,2669.1,2668.9,0.93666]
[1727105121408,0.97968051,2669.3,2669.0,2.552]
[1727105121610,0.97968051,2669.4,2669.3,0.37461]
[1727105121809,0.97968051,2669.4,2669.3,2.42461]
[1727105122206,0.43418051,2669.5,2669.4,1.31108]
[1727105122418,4.87928145,2670.0,2669.5,0.37457]
[1727105122616,0.37456,2669.7,2669.5,2.05]
[1727105122813,0.37454,2669.8,2669.5,7.57357]
[1727105123016,0.9125,2669.9,2669.5,2.05]
[1727105123017,0.37455,2669.7,2669.5,2.05]
[1727105123218,3.4078,2670.0,2669.8,0.37454]
[1727105123419,0.2,2670.0,2669.9,2.05]
[1727105123809,0.2,2670.0,2669.9,6.17012]
[1727105124109,0.2,2670.0,2669.9,2.05]
[1727105124311,0.2,2670.0,2669.9,0.37452]
[1727105124518,0.2,2670.0,2669.7,7.668]
[1727105124708,0.2,2670.0,2669.6,5.148]
[1727105125020,0.2,2670.0,2669.9,0.37452]
[1727105125318,0.2,2670.0,2669.8,2.52]
[1727105125511,0.2,2670.0,2669.9,4.12012]
[1727105125713,0.2,2670.0,2669.9,7.75552]
[1727105125917,0.2,2670.0,2669.9,4.54772]
[1727105126320,0.2,2670.0,2669.9,10.54772]
[1727105126620,0.37444,2670.5,2670.0,0.3745]
[1727105126823,0.37445,2670.4,2669.9,3.6354]
[1727105127022,0.37447,2670.3,2669.9,3.6354]
[1727105127217,4.67928145,2670.6,2669.9,5.7278]
[1727105127523,1.08749757,2671.2,2670.5,0.37443]
[1727105127524,3.58217,2671.0,2670.5,0.37443]
[1727105127932,3.2078,2671.0,2670.2,2.70862586]
[1727105128219,3.2078,2671.0,2670.7,0.3744]
[1727105128619,0.8685,2671.1,2670.5,7.668]
[1727105128927,0.4207,2671.1,2670.9,0.37438]
[1727105129317,0.4207,2671.1,2670.6,0.879]
[1727105129614,0.79506,2671.1,2670.6,0.879]
[1727105129814,0.4207,2671.1,2670.5,5.147]
[1727105130125,3.2078,2670.8,2670.0,0.516]
[1727105130325,0.37447,2670.3,2669.9,5.52152]
[1727105130530,3.58226,2670.4,2669.9,5.52152]
[1727105130824,3.58226,2670.4,2670.0,0.37451]
[1727105131126,3.2078,2670.4,2670.2,0.37447]
[1727105131319,0.8916,2670.7,2669.9,7.667]
[1727105131515,0.37443,2670.6,2670.2,0.37447]
[1727105131824,3.2078,2670.5,2670.0,0.4647]
[1727105132014,0.37448,2670.2,2669.9,7.667]
[1727105132219,0.4544,2670.4,2669.7,12.5768]
[1727105132422,3.2078,2670.1,2669.9,2.52]
[1727105132624,0.4437,2670.6,2670.2,2.52]
[1727105132816,0.37436,2671.1,2670.7,0.3744]
[1727105133222,5.48692,2671.3,2670.6,0.37442]
[1727105133427,0.37437,2671.1,2670.7,0.3744]
[1727105133723,0.37437,2671.0,2670.6,0.37441]
[1727105134022,0.37437,2671.0,2670.7,0.3744]
[1727105134222,0.4249,2671.2,2670.7,0.37441]
[1727105134424,0.4249,2671.2,2670.9,0.37437]
[1727105134425,0.4204,2671.1,2670.9,0.37437]
[1727105135125,0.4204,2671.1,2670.8,0.37439]
[1727105135126,0.79476,2671.1,2670.8,0.37439]
[1727105135529,0.4204,2671.1,2670.5,2.52]
[1727105135827,0.37442,2670.7,2670.4,0.37444]
[1727105137131,4.57623,2671.0,2670.4,0.37444]
[1727105137132,0.37442,2670.6,2670.4,0.37445]
[1727105137426,0.37439,2670.9,2670.6,0.37441]
[1727105137620,3.6403,2671.0,2670.2,2.52]
[1727105137830,0.37439,2670.9,2670.7,0.3744]
[1727105138226,0.37439,2670.9,2670.7,0.37441]
[1727105138725,0.37436,2671.1,2670.9,0.37438]
[1727105138927,0.37437,2671.0,2670.9,0.37438]
[1727105139130,0.37437,2671.0,2670.8,0.37439]
[1727105139430,4.5609,2671.3,2670.5,3.2078]
[1727105139728,0.37436,2671.1,2670.7,2.52]
[1727105139929,0.37436,2671.1,2671.0,0.37437]
[1727105140129,0.37437,2671.0,2670.9,0.37438]
[1727105140319,0.37437,2671.0,2670.8,0.37439]
[1727105140520,5.49674,2671.3,2670.7,2.52]
[1727105140729,0.37437,2671.0,2670.9,0.37438]
[1727105141333,0.37437,2671.0,2670.8,0.37439]
[1727105141627,0.3744,2670.8,2670.7,2.8944]
[1727105141832,0.37438,2671.0,2670.7,2.52]
[1727105142027,0.37436,2671.1,2670.7,2.52]
[1727105142325,0.37439,2670.9,2670.8,0.37439]
[1727105142535,0.37437,2671.0,2670.9,0.37438]
[1727105143027,5.49674,2671.3,2670.7,2.52]
[1727105143028,0.37436,2671.1,2671.0,0.37437]
[1727105143330,0.37437,2671.0,2670.9,0.37437]
[1727105143939,4.5609,2671.3,2671.2,0.37434]
[1727105144131,6.951,2671.3,2671.2,2.89434]
[1727105144332,6.951,2671.3,2671.2,2.41434]
[1727105144534,3.6654,2671.7,2671.3,0.37432]
[1727105144731,0.37432,2671.4,2671.3,0.37432]
[1727105145229,4.6011,2671.7,2671.4,0.93579]
[1727105145230,3.2078,2671.7,2671.4,0.93579]
[1727105145432,0.4233,2672.5,2671.6,3.2078]
[1727105145631,0.4233,2672.5,2671.5,0.93575]
[1727105145632,0.4233,2672.5,2672.4,2.04]
[1727105145830,0.37418,2672.4,2671.9,3.2078]
[1727105146031,0.79746,2672.5,2672.4,2.04]
[1727105146229,0.79746,2672.5,2672.0,0.4547]
[1727105146230,0.93544,2672.4,2672.0,2.04]
[1727105146433,0.37423,2672.0,2671.8,2.52]
[1727105146633,0.37424,2672.0,2671.8,2.52]
[1727105146837,0.93551,2672.2,2671.8,2.52]
[1727105147041,0.37422,2672.1,2671.8,2.52]
[1727105147230,0.4373,2672.2,2671.8,2.52]
[1727105147436,3.2078,2672.3,2672.1,2.52]
[1727105147837,0.4373,2672.5,2672.4,0.37417]
[1727105148130,0.4373,2673.1,2672.4,11.7278]
[1727105148442,3.6451,2673.1,2672.2,8.101]
[1727105148735,0.37413,2672.7,2672.2,8.47519]
[1727105148955,3.6451,2673.1,2672.5,0.37415]
[1727105149139,3.2078,2673.1,2672.5,2.52]
[1727105149437,3.2078,2673.6,2672.8,2.52]
[1727105149629,3.58181,2673.6,2672.8,2.52]
[1727105149829,0.37404,2673.4,2672.9,0.37409]
[1727105150025,0.37404,2673.4,2672.8,2.8941]
[1727105150237,3.2078,2673.6,2672.9,0.37409]
[1727105150435,0.37403,2673.5,2673.0,0.37408]
[1727105150630,0.37403,2673.5,2673.1,0.37407]
[1727105150631,0.37402,2673.5,2673.1,0.37407]
[1727105150829,0.37403,2673.4,2673.0,3.58188]
[1727105151028,3.2078,2673.6,2672.9,0.3741]
[1727105151228,3.58181,2673.6,2673.1,0.37406]
[1727105151431,3.2078,2673.6,2673.1,0.37406]
[1727105151638,0.37403,2673.5,2673.1,0.37406]
[1727105151843,3.2078,2673.6,2672.9,0.4412]
[1727105152139,3.2078,2673.9,2673.1,2.52]
[1727105152341,1.3407,2673.8,2673.1,2.52]
[1727105152638,3.2078,2673.6,2673.0,5.123]
[1727105152835,0.37407,2673.2,2673.0,5.123]
[1727105153034,0.37405,2673.3,2673.0,5.49708]
[1727105153230,0.37403,2673.5,2673.0,5.123]
[1727105153544,0.93505,2673.5,2673.0,5.123]
[1727105153845,0.37407,2673.2,2673.0,5.123]
[1727105154027,0.93505,2673.5,2672.8,2.52]
[1727105154239,3.647,2673.1,2672.2,0.5086]
[1727105154436,0.93533,2672.7,2672.1,5.7278]
[1727105154740,0.37419,2672.3,2672.1,5.7278]
[1727105154938,3.2078,2672.8,2672.1,2.52]
[1727105155139,3.2078,2672.8,2672.7,2.52]
[1727105155449,0.93507,2673.5,2672.7,2.52]
[1727105155450,0.37411,2672.9,2672.7,2.52]
[1727105155737,3.2078,2673.3,2672.7,2.52]
[1727105155940,0.37407,2673.2,2673.0,2.89408]
[1727105156332,0.37407,2673.1,2673.0,2.52]
[1727105156533,0.37407,2673.1,2672.9,0.37409]
[1727105156749,0.37408,2673.1,2672.9,0.3741]
[1727105156948,0.37407,2673.2,2673.0,0.37408]
[1727105157338,0.37407,2673.1,2672.9,0.37409]
[1727105157537,0.37408,2673.1,2672.9,0.37409]
[1727105157843,1.82711,2673.4,2672.9,0.3741]
[1727105157844,0.37409,2673.0,2672.9,0.3741]
[1727105158050,0.93514,2673.3,2672.7,7.642]
[1727105158241,0.37408,2673.1,2672.9,0.3741]
[1727105158436,0.37409,2673.0,2672.9,0.3741]
[1727105158643,0.37409,2673.0,2672.7,7.642]
[1727105158837,0.892,2673.4,2672.7,7.642]
[1727105158838,0.37411,2672.9,2672.7,7.642]
[1727105159039,0.93516,2673.2,2672.7,7.642]
[1727105159040,0.37409,2673.0,2672.8,0.3741]
[1727105159450,0.37412,2672.8,2672.7,5.122]
[1727105160046,0.37417,2672.5,2672.4,0.37417]
[1727105160234,0.37416,2672.5,2672.4,0.37416]
[1727105160433,0.4595,2672.7,2672.2,3.4203]
[1727105160635,0.37415,2672.6,2672.5,0.37415]
[1727105160840,0.37416,2672.5,2672.4,0.37416]
[1727105161247,0.37421,2672.2,2672.1,0.37421]
[1727105161547,0.37423,2672.0,2671.9,0.37423]
[1727105161736,0.37424,2671.9,2671.8,0.8767]
[1727105162045,0.4595,2672.7,2671.9,0.37424]
[1727105162046,0.37423,2672.0,2671.9,0.37424]
[1727105162248,0.37427,2671.7,2671.6,5.5567]
[1727105162446,0.37427,2671.7,2671.3,3.58212]
[1727105162447,0.37432,2671.4,2671.3,3.58212]
[1727105162647,0.37434,2671.2,2671.1,3.2078]
[1727105162945,0.37438,2670.9,2670.8,3.2078]
[1727105163140,0.37441,2670.7,2670.5,5.121]
[1727105163542,0.37441,2670.7,2670.1,9.80889602]
[1727105163744,4.11921,2670.7,2670.3,3.2078]
[1727105163966,11.05524,2670.7,2670.1,0.45089602]
[1727105164140,11.05524,2670.7,2670.6,0.25149872]
[1727105164548,11.05524,2670.7,2670.1,0.45089602]
[1727105164549,1.31069,2670.2,2670.1,0.45089602]
[1727105164739,9.2078,2670.2,2669.3,3.2948]
[1727105165044,0.37456,2669.7,2669.1,3.2078]
[1727105165352,0.37456,2669.7,2669.3,0.3746]
[1727105165749,3.2078,2670.2,2669.4,5.7278]
[1727105166049,3.2078,2670.2,2669.7,2.52]
[1727105166050,0.37452,2670.0,2669.7,2.52]
[1727105166363,4.14401,2670.2,2669.4,8.01758]
[1727105166645,0.37454,2669.8,2669.4,8.01758]
[1727105166949,3.58229,2670.2,2669.5,3.2078]
[1727105167141,3.2078,2670.2,2669.7,2.52]
[1727105167642,3.2078,2670.2,2669.5,3.2078]
[1727105167643,0.37453,2669.9,2669.5,3.58237]
[1727105167937,3.2078,2670.2,2669.5,3.2078]
[1727105167938,0.93624,2670.1,2669.5,3.2078]
[1727105168240,0.93624,2670.1,2669.4,7.643]
[1727105168241,4.14411,2669.9,2669.2,3.2078]
[1727105168444,0.37461,2669.3,2669.2,3.2078]
[1727105168647,0.93645,2669.6,2668.9,0.37466]
[1727105168847,0.37461,2669.3,2668.8,5.123]
[1727105169154,0.37462,2669.2,2668.9,0.37466]
[1727105169453,0.37458,2669.5,2669.2,0.37461]
[1727105169648,0.37458,2669.5,2669.0,5.7278]
[1727105169649,0.37459,2669.4,2669.1,0.37462]
[1727105170243,0.37458,2669.5,2669.2,0.37462]
[1727105170442,0.37456,2669.7,2669.0,5.7278]
[1727105170647,3.6726,2670.0,2669.0,5.7278]
[1727105170648,0.37455,2669.8,2669.4,0.37459]
[1727105170852,0.37455,2669.8,2669.4,2.89459]
[1727105171042,0.37452,2669.9,2669.4,2.52]
[1727105171354,0.37456,2669.7,2669.4,2.89459]
[1727105171550,3.6726,2670.0,2669.4,2.52]
[1727105171745,0.37453,2669.9,2669.5,0.37457]
[1727105172056,0.37454,2669.8,2669.5,0.37457]
[1727105172354,0.37454,2669.8,2669.4,2.52]
[1727105172849,3.2078,2670.3,2669.4,2.52]
[1727105172850,3.5,2669.7,2669.4,2.52]
[1727105173070,3.5,2669.7,2669.3,3.2078]
[1727105173247,3.5,2669.7,2668.8,5.21]
[1727105173248,3.5,2669.7,2669.2,3.2078]
[1727105173455,3.5,2669.7,2668.8,3.2078]
[1727105173456,0.37465,2669.0,2668.8,3.2078]
[1727105173650,0.37465,2669.0,2668.7,0.37469]
[1727105173951,4.0635,2669.6,2669.3,0.3746]
[1727105173952,4.43807,2669.6,2669.3,0.3746]
[1727105174151,3.5,2669.7,2669.1,2.52]
[1727105174351,3.87456,2669.7,2669.3,0.3746]
[1727105174657,3.87456,2669.7,2669.4,0.37458]
[1727105174658,3.5,2669.7,2669.4,0.37458]
[1727105174952,3.5,2669.7,2669.5,0.37458]
[1727105175149,3.5,2669.7,2669.1,2.52]
[1727105175150,3.5,2669.7,2669.3,3.2078]
[1727105175547,7.2464,2669.7,2669.3,3.2078]
[1727105175751,3.7464,2669.6,2669.3,3.2078]
[1727105175947,3.87456,2669.7,2669.4,0.37459]
[1727105176249,0.37458,2669.6,2669.3,3.5824]
[1727105176642,3.5,2669.7,2669.1,2.52]
[1727105177056,0.37458,2669.5,2669.2,0.37462]
[1727105177255,0.3746,2669.4,2669.2,0.37462]
[1727105177454,0.3746,2669.4,2669.1,2.89462]
[1727105177660,3.7464,2669.3,2668.7,3.2078]
[1727105177853,0.37465,2669.0,2668.8,0.37467]
[1727105178049,0.37468,2668.8,2668.7,3.2078]
[1727105178254,0.37471,2668.6,2668.3,2.52]
[1727105178452,0.93666,2669.0,2668.4,0.37472]
[1727105178651,0.93666,2668.9,2668.2,5.117]
[1727105178849,0.3747,2668.7,2668.4,0.37472]
[1727105179051,0.93666,2668.9,2668.3,0.37474]
[1727105179254,0.3747,2668.7,2668.4,0.37473]